[Event "Late-Titled-Tuesday-Blitz-February-13-2024"]
[Site "Chess.com"]
[Date "2024.02.13"]
[Round "3"]
[White "Chempiblinka"]
[Black "BeardedNM"]
[Result "0-1"]
[WhiteElo "2348"]
[BlackElo "2137"]
[TimeControl "180+1"]
[EndTime "14:28:02 PST"]
[Termination "BeardedNM won by resignation"]

1. Nf3 {[%clk 0:03:00.9]} 1... Nf6 {[%clk 0:02:56.2]} 2. g3 {[%clk 0:03:00.5]}
2... d5 {[%clk 0:02:56.1]} 3. Bg2 {[%clk 0:02:59.8]} 3... e6 {[%clk 0:02:55.6]}
4. c4 {[%clk 0:02:59.2]} 4... Be7 {[%clk 0:02:55.6]} 5. O-O {[%clk 0:02:59.1]}
5... O-O {[%clk 0:02:55.6]} 6. d4 {[%clk 0:02:58.5]} 6... dxc4 {[%clk
0:02:55.9]} 7. Qc2 {[%clk 0:02:55.9]} 7... a6 {[%clk 0:02:55.7]} 8. a4 {[%clk
0:02:54.8]} 8... Bd7 {[%clk 0:02:56]} 9. Ne5 {[%clk 0:02:51.5]} 9... Nc6 {[%clk
0:02:50]} 10. Nxc6 {[%clk 0:02:47.9]} 10... Bxc6 {[%clk 0:02:49.4]} 11. Bxc6
{[%clk 0:02:48.3]} 11... bxc6 {[%clk 0:02:49.9]} 12. Qxc4 {[%clk 0:02:46.8]}
12... Qd5 {[%clk 0:02:47.2]} 13. Nd2 {[%clk 0:02:44.8]} 13... Rfd8 {[%clk
0:02:43.7]} 14. e3 {[%clk 0:02:40]} 14... c5 {[%clk 0:02:43.3]} 15. dxc5 {[%clk
0:02:29.6]} 15... Qxc5 {[%clk 0:02:37.1]} 16. b3 {[%clk 0:02:23.2]} 16... Rab8
{[%clk 0:02:28]} 17. Rb1 {[%clk 0:01:54.7]} 17... Qxc4 {[%clk 0:02:10.9]} 18.
Nxc4 {[%clk 0:01:54.5]} 18... Rd3 {[%clk 0:02:10.6]} 19. Na5 {[%clk 0:01:48.7]}
19... Bb4 {[%clk 0:01:57.8]} 20. Nc6 {[%clk 0:01:39.9]} 20... Rb6 {[%clk
0:01:57.9]} 21. Ne5 {[%clk 0:01:35.1]} 21... Rd5 {[%clk 0:01:36.7]} 22. Nc4
{[%clk 0:01:31.9]} 22... Rb7 {[%clk 0:01:35.5]} 23. Bb2 {[%clk 0:01:09.7]} 23...
h5 {[%clk 0:01:24.2]} 24. Rfd1 {[%clk 0:01:04.1]} 24... Ne4 {[%clk 0:01:04.2]}
25. Rbc1 {[%clk 0:00:45.6]} 25... Bd2 {[%clk 0:00:53.6]} 26. Nxd2 {[%clk
0:00:30.5]} 26... Nxd2 {[%clk 0:00:49.6]} 27. Bd4 {[%clk 0:00:18.6]} 27... Nxb3
{[%clk 0:00:44.1]} 28. Rc6 {[%clk 0:00:19]} 28... e5 {[%clk 0:00:39]} 29. Rxa6
{[%clk 0:00:15.8]} 29... exd4 {[%clk 0:00:37.7]} 30. exd4 {[%clk 0:00:16.7]}
30... Nxd4 {[%clk 0:00:36.1]} 31. Ra8+ {[%clk 0:00:15]} 31... Kh7 {[%clk
0:00:35.5]} 32. Kg2 {[%clk 0:00:13.6]} 32... c5 {[%clk 0:00:23.8]} 33. a5 {[%clk
0:00:13.2]} 33... Rb2 {[%clk 0:00:23.8]} 34. a6 {[%clk 0:00:13]} 34... Rf5
{[%clk 0:00:23.6]} 35. Rf1 {[%clk 0:00:11.9]} 35... Ra2 {[%clk 0:00:23.6]} 36.
Rc8 {[%clk 0:00:08.4]} 36... Rxa6 {[%clk 0:00:22.5]} 37. Rc1 {[%clk 0:00:07.8]}
37... Ra2 {[%clk 0:00:21.6]} 38. R1xc5 {[%clk 0:00:07.5]} 38... Rfxf2+ {[%clk
0:00:18.3]} 39. Kg1 {[%clk 0:00:07.7]} 39... Nf3+ {[%clk 0:00:17.9]} 0-1

[Event "Late-Titled-Tuesday-Blitz-February-13-2024"]
[Site "Chess.com"]
[Date "2024.02.13"]
[Round "3"]
[White "sharkarton"]
[Black "TorFredrikKaasen"]
[Result "0-1"]
[WhiteElo "2510"]
[BlackElo "2794"]
[TimeControl "180+1"]
[EndTime "14:28:03 PST"]
[Termination "TorFredrikKaasen won by resignation"]

1. Nf3 {[%clk 0:03:00.9]} 1... d5 {[%clk 0:02:59.7]} 2. d4 {[%clk 0:03:00.9]}
2... Nf6 {[%clk 0:02:59.7]} 3. c4 {[%clk 0:03:01.1]} 3... e6 {[%clk 0:03:00]} 4.
Nc3 {[%clk 0:03:00.8]} 4... c5 {[%clk 0:02:56.5]} 5. cxd5 {[%clk 0:02:56.7]}
5... Nxd5 {[%clk 0:02:56.7]} 6. e3 {[%clk 0:02:48.8]} 6... Nc6 {[%clk 0:02:50]}
7. Bd3 {[%clk 0:02:44]} 7... Be7 {[%clk 0:02:43.6]} 8. O-O {[%clk 0:02:43.7]}
8... O-O {[%clk 0:02:44]} 9. Nxd5 {[%clk 0:02:29.5]} 9... Qxd5 {[%clk
0:02:40.5]} 10. Qc2 {[%clk 0:02:29.4]} 10... h6 {[%clk 0:02:27.5]} 11. Be4
{[%clk 0:02:23.5]} 11... Qd6 {[%clk 0:02:25.3]} 12. Rd1 {[%clk 0:02:19.2]} 12...
cxd4 {[%clk 0:02:22.3]} 13. Nxd4 {[%clk 0:02:18.6]} 13... Nxd4 {[%clk
0:02:22.5]} 14. Rxd4 {[%clk 0:02:19.4]} 14... Qb6 {[%clk 0:02:20.9]} 15. Rd1
{[%clk 0:02:08.4]} 15... e5 {[%clk 0:02:16.8]} 16. Bd2 {[%clk 0:02:04.2]} 16...
Be6 {[%clk 0:02:15.1]} 17. Bc3 {[%clk 0:02:02.9]} 17... Rac8 {[%clk 0:02:14.4]}
18. Qe2 {[%clk 0:01:57.4]} 18... Rc5 {[%clk 0:01:52.8]} 19. Rd2 {[%clk
0:01:27.8]} 19... Rd8 {[%clk 0:01:49.2]} 20. Rad1 {[%clk 0:01:26.9]} 20... Rxd2
{[%clk 0:01:48.3]} 21. Qxd2 {[%clk 0:01:25.6]} 21... a5 {[%clk 0:01:34.6]} 22.
h3 {[%clk 0:01:15.1]} 22... Qc7 {[%clk 0:01:31.3]} 23. Bb1 {[%clk 0:01:01.8]}
23... Rd5 {[%clk 0:01:29.4]} 24. Qe2 {[%clk 0:01:00.9]} 24... Rxd1+ {[%clk
0:01:28.7]} 25. Qxd1 {[%clk 0:01:01.8]} 25... b6 {[%clk 0:01:25.6]} 26. Qd3
{[%clk 0:01:00.4]} 26... g6 {[%clk 0:01:21.1]} 27. Qb5 {[%clk 0:00:48.9]} 27...
Bc5 {[%clk 0:01:09.4]} 28. a3 {[%clk 0:00:38.9]} 28... Kh7 {[%clk 0:00:58.9]}
29. Bd3 {[%clk 0:00:30.2]} 29... Bd6 {[%clk 0:00:52.3]} 30. Be2 {[%clk
0:00:23.9]} 30... Bd7 {[%clk 0:00:51.7]} 31. Qc4 {[%clk 0:00:22.1]} 31... Qxc4
{[%clk 0:00:51.2]} 32. Bxc4 {[%clk 0:00:23]} 32... Kg7 {[%clk 0:00:50.8]} 33. f3
{[%clk 0:00:22.3]} 33... f5 {[%clk 0:00:48]} 34. Kf2 {[%clk 0:00:21.9]} 34...
Kf6 {[%clk 0:00:47.8]} 35. Bd5 {[%clk 0:00:19]} 35... h5 {[%clk 0:00:46.7]} 36.
e4 {[%clk 0:00:17.8]} 36... Bc5+ {[%clk 0:00:46.4]} 37. Ke2 {[%clk 0:00:14]}
37... Bb5+ {[%clk 0:00:46.5]} 38. Ke1 {[%clk 0:00:13.2]} 38... f4 {[%clk
0:00:44.4]} 39. b4 {[%clk 0:00:12.4]} 39... axb4 {[%clk 0:00:44.1]} 40. axb4
{[%clk 0:00:13.2]} 40... Be3 {[%clk 0:00:44.6]} 41. Bd2 {[%clk 0:00:12.5]} 41...
Bd4 {[%clk 0:00:45.1]} 42. Bb7 {[%clk 0:00:09.5]} 42... Kg5 {[%clk 0:00:40.9]}
43. Bc8 {[%clk 0:00:05.8]} 43... Kh4 {[%clk 0:00:39.9]} 44. Be6 {[%clk
0:00:04.7]} 44... Kg3 {[%clk 0:00:35.7]} 45. Bf7 {[%clk 0:00:05.1]} 45... Kxg2
{[%clk 0:00:36.2]} 46. Bxg6 {[%clk 0:00:05.4]} 46... Kxf3 {[%clk 0:00:36.8]} 47.
Bxh5+ {[%clk 0:00:05.2]} 47... Kxe4 {[%clk 0:00:37.3]} 48. Bg4 {[%clk
0:00:03.2]} 48... f3 {[%clk 0:00:36.4]} 49. Bg5 {[%clk 0:00:02.3]} 49... f2+
{[%clk 0:00:36.2]} 0-1

[Event "Late-Titled-Tuesday-Blitz-February-13-2024"]
[Site "Chess.com"]
[Date "2024.02.13"]
[Round "3"]
[White "GoldenShare"]
[Black "Alblooshi_Hamad"]
[Result "1-0"]
[WhiteElo "2542"]
[BlackElo "2242"]
[TimeControl "180+1"]
[EndTime "14:28:03 PST"]
[Termination "GoldenShare won by resignation"]

1. e4 {[%clk 0:02:57.3]} 1... c5 {[%clk 0:02:57.2]} 2. Nc3 {[%clk 0:02:57.7]}
2... Nc6 {[%clk 0:02:56.4]} 3. Bb5 {[%clk 0:02:58.2]} 3... Nd4 {[%clk
0:02:55.1]} 4. Nf3 {[%clk 0:02:58.7]} 4... a6 {[%clk 0:02:52.3]} 5. Bd3 {[%clk
0:02:58.6]} 5... Nc6 {[%clk 0:02:52]} 6. O-O {[%clk 0:02:57.8]} 6... g6 {[%clk
0:02:51.1]} 7. e5 {[%clk 0:02:57.9]} 7... Bg7 {[%clk 0:02:51.5]} 8. Re1 {[%clk
0:02:58.3]} 8... Nh6 {[%clk 0:02:24.2]} 9. Bc4 {[%clk 0:02:41.5]} 9... O-O
{[%clk 0:02:17.1]} 10. d3 {[%clk 0:02:40.2]} 10... Nf5 {[%clk 0:02:12.5]} 11.
Bf4 {[%clk 0:02:32]} 11... d6 {[%clk 0:02:05.7]} 12. exd6 {[%clk 0:02:24.8]}
12... Nxd6 {[%clk 0:01:41.4]} 13. Bd5 {[%clk 0:02:12.4]} 13... Nd4 {[%clk
0:01:35.1]} 14. Ne5 {[%clk 0:01:51.5]} 14... Ne6 {[%clk 0:01:27.4]} 15. Bg3
{[%clk 0:01:46.9]} 15... Nf5 {[%clk 0:01:17.1]} 16. Qe2 {[%clk 0:01:10.3]} 16...
Ned4 {[%clk 0:01:09.8]} 17. Qd2 {[%clk 0:00:59.7]} 17... Nxg3 {[%clk 0:00:58.4]}
18. hxg3 {[%clk 0:01:00.6]} 18... e6 {[%clk 0:00:50.3]} 19. Bb3 {[%clk
0:00:46.8]} 19... Qc7 {[%clk 0:00:35.9]} 20. Nf3 {[%clk 0:00:44.4]} 20... b5
{[%clk 0:00:32.3]} 21. Ne4 {[%clk 0:00:42.5]} 21... Bb7 {[%clk 0:00:30.7]} 22.
c3 {[%clk 0:00:43]} 22... Nxb3 {[%clk 0:00:28.7]} 23. axb3 {[%clk 0:00:43.9]}
23... Rad8 {[%clk 0:00:24.8]} 24. Rad1 {[%clk 0:00:40.7]} 24... Rd7 {[%clk
0:00:21.4]} 25. Qe3 {[%clk 0:00:37.8]} 25... Rc8 {[%clk 0:00:20.6]} 26. g4
{[%clk 0:00:37.1]} 26... h6 {[%clk 0:00:17]} 27. g5 {[%clk 0:00:37.3]} 27...
hxg5 {[%clk 0:00:17.2]} 28. Nfxg5 {[%clk 0:00:38.2]} 28... Bxe4 {[%clk
0:00:12.9]} 29. Nxe4 {[%clk 0:00:32.8]} 29... Qc6 {[%clk 0:00:11.1]} 30. Qf3
{[%clk 0:00:30.4]} 30... Qd5 {[%clk 0:00:07.7]} 31. c4 {[%clk 0:00:24.3]} 31...
Qf5 {[%clk 0:00:06.3]} 32. Qg3 {[%clk 0:00:13.4]} 32... Rcd8 {[%clk 0:00:01.9]}
33. Re3 {[%clk 0:00:13.4]} 33... Be5 {[%clk 0:00:01.1]} 34. Qh4 {[%clk
0:00:11.8]} 34... Rxd3 {[%clk 0:00:01.4]} 35. Rdxd3 {[%clk 0:00:11.4]} 35...
Rxd3 {[%clk 0:00:01.6]} 36. Rxd3 {[%clk 0:00:12.3]} 1-0

[Event "Late-Titled-Tuesday-Blitz-February-13-2024"]
[Site "Chess.com"]
[Date "2024.02.13"]
[Round "3"]
[White "Mikhail_Golubev"]
[Black "WindWhistler11"]
[Result "1-0"]
[WhiteElo "2686"]
[BlackElo "2494"]
[TimeControl "180+1"]
[EndTime "14:28:05 PST"]
[Termination "Mikhail_Golubev won by resignation"]

1. e4 {[%clk 0:03:00.9]} 1... e6 {[%clk 0:03:00.3]} 2. d4 {[%clk 0:02:59.3]}
2... d5 {[%clk 0:03:01]} 3. Bd3 {[%clk 0:02:59.7]} 3... Nc6 {[%clk 0:03:01]} 4.
Nf3 {[%clk 0:02:54.3]} 4... Nb4 {[%clk 0:02:51.1]} 5. exd5 {[%clk 0:02:44.2]}
5... Nxd3+ {[%clk 0:02:49.1]} 6. Qxd3 {[%clk 0:02:44.8]} 6... exd5 {[%clk
0:02:49.8]} 7. O-O {[%clk 0:02:44.7]} 7... Be7 {[%clk 0:02:50.5]} 8. Re1 {[%clk
0:02:32.2]} 8... Be6 {[%clk 0:02:50.3]} 9. Qb5+ {[%clk 0:02:25.7]} 9... c6
{[%clk 0:02:16.1]} 10. Qxb7 {[%clk 0:02:22.4]} 10... Rc8 {[%clk 0:02:15.2]} 11.
Ne5 {[%clk 0:02:12.6]} 11... Rc7 {[%clk 0:02:05.6]} 12. Qa6 {[%clk 0:02:03.8]}
12... Nf6 {[%clk 0:02:01.4]} 13. Bf4 {[%clk 0:01:49.2]} 13... Qc8 {[%clk
0:01:11.2]} 14. Qe2 {[%clk 0:01:47.3]} 14... O-O {[%clk 0:01:10.6]} 15. Nxf7
{[%clk 0:01:35.5]} 15... Ne4 {[%clk 0:00:40.4]} 16. Bxc7 {[%clk 0:01:24.4]}
16... Qxc7 {[%clk 0:00:38.9]} 17. f3 {[%clk 0:01:12.8]} 17... Bh4 {[%clk
0:00:24.6]} 18. Ne5 {[%clk 0:01:01.4]} 18... Bxe1 {[%clk 0:00:18.1]} 19. Qxe1
{[%clk 0:01:00]} 19... Qb6 {[%clk 0:00:14.6]} 20. fxe4 {[%clk 0:00:22]} 20...
Qxd4+ {[%clk 0:00:14.6]} 21. Kh1 {[%clk 0:00:22.2]} 21... Qxe5 {[%clk
0:00:13.8]} 22. Nc3 {[%clk 0:00:21.4]} 22... d4 {[%clk 0:00:11.4]} 23. Na4
{[%clk 0:00:20.2]} 23... Bc4 {[%clk 0:00:09.9]} 24. Qb4 {[%clk 0:00:15.4]} 24...
Bb5 {[%clk 0:00:05.7]} 25. Nc5 {[%clk 0:00:11.9]} 25... a5 {[%clk 0:00:05.5]}
26. Qb3+ {[%clk 0:00:08.1]} 26... Kh8 {[%clk 0:00:05.3]} 27. Qa3 {[%clk
0:00:06.1]} 27... Qf4 {[%clk 0:00:04.9]} 28. Rg1 {[%clk 0:00:05.7]} 28... Be2
{[%clk 0:00:03]} 29. Ne6 {[%clk 0:00:05.6]} 29... Qf7 {[%clk 0:00:01.4]} 30.
Qxf8+ {[%clk 0:00:05.5]} 30... Qxf8 {[%clk 0:00:01.6]} 31. Nxf8 {[%clk
0:00:06.3]} 31... c5 {[%clk 0:00:02.3]} 32. Ne6 {[%clk 0:00:06.1]} 32... c4
{[%clk 0:00:03.2]} 33. Nxd4 {[%clk 0:00:06.5]} 33... Bg4 {[%clk 0:00:03.5]} 34.
c3 {[%clk 0:00:06.8]} 34... Bd7 {[%clk 0:00:03.8]} 35. h3 {[%clk 0:00:07.1]}
35... Ba4 {[%clk 0:00:04.4]} 36. Re1 {[%clk 0:00:07.3]} 36... Be8 {[%clk
0:00:05.3]} 37. Kg1 {[%clk 0:00:07.5]} 1-0

[Event "Late-Titled-Tuesday-Blitz-February-13-2024"]
[Site "Chess.com"]
[Date "2024.02.13"]
[Round "3"]
[White "jinxy2009"]
[Black "dolynachess"]
[Result "0-1"]
[WhiteElo "2230"]
[BlackElo "2483"]
[TimeControl "180+1"]
[EndTime "14:28:05 PST"]
[Termination "dolynachess won on time"]

1. e4 {[%clk 0:03:00.9]} 1... c5 {[%clk 0:02:59.3]} 2. Nf3 {[%clk 0:02:54.9]}
2... d6 {[%clk 0:02:59.2]} 3. d4 {[%clk 0:02:55.8]} 3... cxd4 {[%clk 0:02:59.7]}
4. Nxd4 {[%clk 0:02:56.7]} 4... Nf6 {[%clk 0:03:00.3]} 5. Nc3 {[%clk 0:02:54.4]}
5... g6 {[%clk 0:03:00.4]} 6. Be3 {[%clk 0:02:46.5]} 6... Nc6 {[%clk 0:02:59]}
7. f3 {[%clk 0:02:32.4]} 7... h5 {[%clk 0:02:58]} 8. Qd2 {[%clk 0:02:30.7]} 8...
Nxd4 {[%clk 0:02:57.1]} 9. Bxd4 {[%clk 0:02:29.1]} 9... Bh6 {[%clk 0:02:57.1]}
10. Qf2 {[%clk 0:02:25.4]} 10... Qa5 {[%clk 0:02:55.9]} 11. Bc4 {[%clk
0:02:19.3]} 11... Be6 {[%clk 0:02:47.8]} 12. Bxe6 {[%clk 0:02:16.9]} 12... fxe6
{[%clk 0:02:48.7]} 13. O-O {[%clk 0:02:15]} 13... O-O {[%clk 0:02:47.6]} 14. Qg3
{[%clk 0:02:03.4]} 14... Kh7 {[%clk 0:02:41.4]} 15. e5 {[%clk 0:01:58.8]} 15...
dxe5 {[%clk 0:02:13.5]} 16. Bxe5 {[%clk 0:01:49.4]} 16... h4 {[%clk 0:01:56.6]}
17. Qe1 {[%clk 0:01:24.9]} 17... h3 {[%clk 0:01:56.4]} 18. g3 {[%clk 0:01:07.3]}
18... Rad8 {[%clk 0:01:53.4]} 19. Rd1 {[%clk 0:00:59.6]} 19... Rxd1 {[%clk
0:01:30.8]} 20. Nxd1 {[%clk 0:00:57.5]} 20... Qxa2 {[%clk 0:01:30.8]} 21. g4
{[%clk 0:00:53.9]} 21... Qd5 {[%clk 0:01:19.7]} 22. Nc3 {[%clk 0:00:20.1]} 22...
Qd2 {[%clk 0:01:17.9]} 23. Qxd2 {[%clk 0:00:19.6]} 23... Bxd2 {[%clk 0:01:17.8]}
24. Bxf6 {[%clk 0:00:19]} 24... exf6 {[%clk 0:01:13.4]} 25. Ne4 {[%clk
0:00:18.7]} 25... Be3+ {[%clk 0:01:10.5]} 26. Kh1 {[%clk 0:00:19]} 26... f5
{[%clk 0:01:09.7]} 27. gxf5 {[%clk 0:00:14.9]} 27... exf5 {[%clk 0:01:03]} 28.
Nc3 {[%clk 0:00:11.2]} 28... Rd8 {[%clk 0:00:54.4]} 29. Rd1 {[%clk 0:00:11.1]}
29... Rxd1+ {[%clk 0:00:53.9]} 30. Nxd1 {[%clk 0:00:12]} 30... Bb6 {[%clk
0:00:50.2]} 31. Nc3 {[%clk 0:00:11.9]} 31... Kh6 {[%clk 0:00:45.4]} 32. Ne2
{[%clk 0:00:11.1]} 32... Kg5 {[%clk 0:00:42.5]} 33. c3 {[%clk 0:00:10.6]} 33...
Be3 {[%clk 0:00:41.1]} 34. b3 {[%clk 0:00:09.3]} 34... b5 {[%clk 0:00:35.2]} 35.
c4 {[%clk 0:00:07.6]} 35... bxc4 {[%clk 0:00:34.1]} 36. bxc4 {[%clk 0:00:08.5]}
36... Kf6 {[%clk 0:00:28.7]} 37. Nc3 {[%clk 0:00:07.9]} 37... Ke5 {[%clk
0:00:25.9]} 38. Nd5 {[%clk 0:00:07.3]} 38... Bc5 {[%clk 0:00:23.1]} 39. f4+
{[%clk 0:00:01.9]} 39... Kd4 {[%clk 0:00:19.5]} 0-1

[Event "Late-Titled-Tuesday-Blitz-February-13-2024"]
[Site "Chess.com"]
[Date "2024.02.13"]
[Round "3"]
[White "RandomNoob04"]
[Black "alexgo05"]
[Result "1-0"]
[WhiteElo "2601"]
[BlackElo "2416"]
[TimeControl "180+1"]
[EndTime "14:28:06 PST"]
[Termination "RandomNoob04 won on time"]

1. e4 {[%clk 0:03:00.9]} 1... c6 {[%clk 0:02:59.6]} 2. c4 {[%clk 0:03:00.9]}
2... e5 {[%clk 0:02:56.4]} 3. Nf3 {[%clk 0:03:00.9]} 3... d6 {[%clk 0:02:56.5]}
4. d4 {[%clk 0:03:01.1]} 4... Nd7 {[%clk 0:02:56.6]} 5. Nc3 {[%clk 0:03:00.6]}
5... Ngf6 {[%clk 0:02:54.6]} 6. Be2 {[%clk 0:02:59.1]} 6... g6 {[%clk
0:02:51.3]} 7. O-O {[%clk 0:02:57.6]} 7... Bg7 {[%clk 0:02:51.6]} 8. h3 {[%clk
0:02:57.9]} 8... O-O {[%clk 0:02:51.6]} 9. Be3 {[%clk 0:02:58.4]} 9... exd4
{[%clk 0:02:44]} 10. Nxd4 {[%clk 0:02:57.6]} 10... Re8 {[%clk 0:02:44.4]} 11.
Qc2 {[%clk 0:02:55.5]} 11... Nc5 {[%clk 0:02:32.9]} 12. Bf3 {[%clk 0:02:20.4]}
12... a5 {[%clk 0:02:32.4]} 13. Rfe1 {[%clk 0:02:13.9]} 13... h6 {[%clk
0:02:32.6]} 14. Rad1 {[%clk 0:02:13.5]} 14... Nh7 {[%clk 0:02:32.7]} 15. Nxc6
{[%clk 0:02:07.9]} 15... Qh4 {[%clk 0:02:04]} 16. Rxd6 {[%clk 0:01:44.8]} 16...
Bf8 {[%clk 0:01:45.3]} 17. Bxc5 {[%clk 0:01:12.3]} 17... Bxd6 {[%clk 0:01:44.7]}
18. Bxd6 {[%clk 0:01:13.2]} 18... bxc6 {[%clk 0:01:44.8]} 19. e5 {[%clk
0:01:10.6]} 19... Ng5 {[%clk 0:01:42.1]} 20. Bxc6 {[%clk 0:01:08.6]} 20... Bxh3
{[%clk 0:01:21.2]} 21. Ne4 {[%clk 0:00:54.5]} 21... Kh8 {[%clk 0:00:30.2]} 22.
Nxg5 {[%clk 0:00:44.6]} 22... Qxg5 {[%clk 0:00:30.1]} 23. f4 {[%clk 0:00:29.4]}
23... Qg3 {[%clk 0:00:27.3]} 24. Qf2 {[%clk 0:00:27.4]} 24... Qxf2+ {[%clk
0:00:18.5]} 25. Kxf2 {[%clk 0:00:28.3]} 25... Be6 {[%clk 0:00:18]} 26. b3 {[%clk
0:00:26.9]} 26... a4 {[%clk 0:00:17.6]} 27. Bxe8 {[%clk 0:00:23.9]} 27... Rxe8
{[%clk 0:00:15.7]} 28. Rb1 {[%clk 0:00:13.9]} 28... Ra8 {[%clk 0:00:12.8]} 29.
c5 {[%clk 0:00:12.9]} 29... axb3 {[%clk 0:00:07.9]} 30. axb3 {[%clk 0:00:13.8]}
30... Ra2+ {[%clk 0:00:06.9]} 31. Ke3 {[%clk 0:00:14.1]} 31... Rxg2 {[%clk
0:00:06.2]} 32. c6 {[%clk 0:00:14.2]} 32... Rc2 {[%clk 0:00:04.9]} 33. c7 {[%clk
0:00:13.9]} 33... h5 {[%clk 0:00:04.9]} 34. b4 {[%clk 0:00:13.3]} 34... h4
{[%clk 0:00:05.1]} 35. b5 {[%clk 0:00:13.6]} 35... Bc8 {[%clk 0:00:02.9]} 36. b6
{[%clk 0:00:12.9]} 36... Bb7 {[%clk 0:00:03.2]} 37. Kd3 {[%clk 0:00:09]} 37...
Rc6 {[%clk 0:00:02.4]} 38. Rb2 {[%clk 0:00:08.7]} 1-0

[Event "Late-Titled-Tuesday-Blitz-February-13-2024"]
[Site "Chess.com"]
[Date "2024.02.13"]
[Round "3"]
[White "Miguelito"]
[Black "LiemLe"]
[Result "0-1"]
[WhiteElo "2762"]
[BlackElo "3026"]
[TimeControl "180+1"]
[EndTime "14:28:07 PST"]
[Termination "LiemLe won by resignation"]

1. e4 {[%clk 0:03:00.9]} 1... c5 {[%clk 0:02:59.7]} 2. Nf3 {[%clk 0:03:00.7]}
2... Nc6 {[%clk 0:03:00.3]} 3. Bb5 {[%clk 0:02:59.6]} 3... g6 {[%clk 0:03:00]}
4. Bxc6 {[%clk 0:02:59.4]} 4... bxc6 {[%clk 0:03:00.9]} 5. d4 {[%clk 0:02:56.1]}
5... cxd4 {[%clk 0:03:01.8]} 6. Qxd4 {[%clk 0:02:55.8]} 6... f6 {[%clk
0:03:02.3]} 7. Qa4 {[%clk 0:02:53.7]} 7... Nh6 {[%clk 0:02:56.1]} 8. c4 {[%clk
0:02:52]} 8... c5 {[%clk 0:02:52.1]} 9. Nc3 {[%clk 0:02:41.8]} 9... Nf7 {[%clk
0:02:51.6]} 10. Be3 {[%clk 0:02:37.7]} 10... e6 {[%clk 0:02:47.9]} 11. O-O
{[%clk 0:02:19.5]} 11... Bb7 {[%clk 0:02:48.1]} 12. Rfd1 {[%clk 0:02:17]} 12...
Be7 {[%clk 0:02:33.9]} 13. Rd2 {[%clk 0:01:58]} 13... Qc8 {[%clk 0:01:53.2]} 14.
Ne1 {[%clk 0:01:14.9]} 14... Bc6 {[%clk 0:01:41]} 15. Qa5 {[%clk 0:01:09.1]}
15... Nd6 {[%clk 0:01:32.5]} 16. Rxd6 {[%clk 0:01:02.1]} 16... Bxd6 {[%clk
0:01:33.4]} 17. Bxc5 {[%clk 0:01:02.7]} 17... Qc7 {[%clk 0:01:28]} 18. Qa3
{[%clk 0:01:00.1]} 18... Bxh2+ {[%clk 0:01:18]} 19. Kh1 {[%clk 0:00:56.9]} 19...
d6 {[%clk 0:01:05.1]} 20. Bd4 {[%clk 0:00:35.6]} 20... Be5 {[%clk 0:01:04.7]}
21. Nf3 {[%clk 0:00:36]} 21... O-O {[%clk 0:01:01.7]} 22. Nxe5 {[%clk
0:00:28.6]} 22... fxe5 {[%clk 0:00:56.4]} 23. Be3 {[%clk 0:00:28.5]} 23... a5
{[%clk 0:00:51.9]} 24. Qb3 {[%clk 0:00:25.8]} 24... Rab8 {[%clk 0:00:49.7]} 25.
Qc2 {[%clk 0:00:26.2]} 25... Ba8 {[%clk 0:00:44.3]} 26. b3 {[%clk 0:00:25.1]}
26... d5 {[%clk 0:00:44.5]} 27. Bh6 {[%clk 0:00:18.1]} 27... Rf7 {[%clk
0:00:37.3]} 28. Rc1 {[%clk 0:00:17.7]} 28... Rc8 {[%clk 0:00:27.9]} 29. Na4
{[%clk 0:00:15.2]} 29... d4 {[%clk 0:00:20.5]} 30. f3 {[%clk 0:00:13.8]} 30...
Qe7 {[%clk 0:00:20.3]} 31. Qf2 {[%clk 0:00:11.7]} 31... Bxe4 {[%clk 0:00:17.8]}
32. Re1 {[%clk 0:00:11.1]} 32... Bc6 {[%clk 0:00:18]} 33. Rxe5 {[%clk
0:00:10.2]} 33... Bxa4 {[%clk 0:00:17.3]} 34. bxa4 {[%clk 0:00:10.6]} 34... Rxc4
{[%clk 0:00:17.3]} 35. Qe2 {[%clk 0:00:09.7]} 35... Rc6 {[%clk 0:00:16.4]} 36.
Qe4 {[%clk 0:00:08.7]} 36... Rd6 {[%clk 0:00:15.6]} 37. Rxa5 {[%clk 0:00:08.2]}
37... d3 {[%clk 0:00:12.8]} 38. Ra8+ {[%clk 0:00:06.6]} 38... Rd8 {[%clk
0:00:13.1]} 39. Bg5 {[%clk 0:00:03.2]} 39... Qxg5 {[%clk 0:00:12.6]} 40. Rxd8+
{[%clk 0:00:03]} 40... Qxd8 {[%clk 0:00:13.5]} 41. Qxe6 {[%clk 0:00:03.3]} 41...
d2 {[%clk 0:00:13.5]} 0-1